bitfinex/quotes_BTCUSD_20250212
["timestamp","ask_amount","ask_price","bid_price","bid_amount"]
[1739367530546,0.20408751,94506.0,94505.0,3.31626782]
[1739367530750,0.20408751,94506.0,94505.0,3.31526782]
[1739367530955,0.15872,94506.0,94505.0,3.31426782]
[1739367531147,0.00022387,94515.0,94505.0,3.31426782]
[1739367531282,0.014,94506.0,94505.0,3.31626782]
[1739367531486,0.98754667,94506.0,94505.0,3.31626782]
[1739367531692,0.004,94506.0,94505.0,3.31526782]
[1739367532099,0.014,94506.0,94505.0,3.31626782]
[1739367532301,0.211565,94534.0,94505.0,3.31626782]
[1739367532546,0.158673,94534.0,94505.0,3.31626782]
[1739367532743,0.211553,94539.0,94505.0,3.31626782]
[1739367532744,0.21154,94545.0,94505.0,3.31526782]
[1739367532964,0.158638,94555.0,94506.0,0.10250365]
[1739367533122,0.211494,94566.0,94510.0,0.32222715]
[1739367533334,0.158656,94544.0,94511.0,0.10356162]
[1739367533563,0.26116265,94543.0,94505.0,2.86383031]
[1739367533766,0.10250365,94543.0,94512.0,0.08462877]
[1739367534215,0.10250365,94543.0,94512.0,0.17856586]
[1739367534629,0.10250365,94543.0,94505.0,2.86383031]
[1739367534827,0.317156,94591.0,94505.0,2.86383031]
[1739367534828,0.10250365,94539.0,94505.0,2.86383031]
[1739367535033,0.10250365,94539.0,94511.0,0.001]
[1739367535391,0.10250365,94539.0,94512.0,0.00105795]
[1739367535578,0.015,94544.0,94513.0,0.11117232]
[1739367535775,0.015,94544.0,94514.0,0.00105781]
[1739367535979,0.015,94544.0,94516.0,0.08462877]
[1739367536184,0.015,94544.0,94520.0,0.32222715]
[1739367536390,0.09077834,94573.0,94530.0,0.32222715]
[1739367536596,0.15861,94571.0,94531.0,0.10356123]
[1739367536798,0.10250365,94570.0,94531.0,0.10356123]
[1739367537096,0.006,94544.0,94532.0,0.08462877]
[1739367537296,0.10250365,94570.0,94533.0,0.10356124]
[1739367537499,0.10250365,94570.0,94536.0,0.08462877]
[1739367537703,0.08462877,94625.0,94540.0,0.32222715]
[1739367537944,0.158579,94590.0,94541.0,0.10250365]
[1739367538120,0.00105741,94589.0,94546.0,0.08462877]
[1739367538489,0.006,94571.0,94546.0,0.08462877]
[1739367538663,0.10250365,94570.0,94546.0,0.08476229]
[1739367538878,0.10250365,94570.0,94546.0,0.00013352]
[1739367539089,0.006,94571.0,94569.0,0.08462877]
[1739367539291,0.006,94571.0,94547.0,0.02472056]
[1739367539646,0.158587,94585.0,94547.0,0.02472056]
[1739367539844,0.15,94608.0,94547.0,0.02472056]
[1739367540051,0.158574,94593.0,94547.0,0.02472056]
[1739367540252,0.22364667,94618.0,94547.0,0.02472056]
[1739367540253,0.22364667,94648.0,94570.0,0.32222715]
[1739367540453,0.10250365,94603.0,94571.0,0.16000861]
[1739367540667,0.158559,94602.0,94553.0,0.08462877]
[1739367540865,0.10250365,94601.0,94563.0,0.08462877]
[1739367541069,0.10356106,94601.0,94573.0,0.08462877]
[1739367541249,0.10250365,94601.0,94574.0,0.00105725]
[1739367541450,0.158541,94613.0,94575.0,0.14329497]
[1739367541694,0.10250365,94603.0,94571.0,0.001]
[1739367541894,0.00105741,94602.0,94572.0,0.08462877]
[1739367542244,0.00022428,94610.0,94584.0,0.08462877]
[1739367542416,0.00022428,94610.0,94585.0,0.00105703]
[1739367542641,0.00022428,94610.0,94572.0,0.08462877]
[1739367542798,0.00022428,94610.0,94584.0,0.00013352]
[1739367542996,0.00022428,94610.0,94590.0,0.32222715]
[1739367543164,0.00022428,94610.0,94591.0,0.10250365]
[1739367543362,0.00022428,94610.0,94574.0,0.001]
[1739367543599,0.00022428,94610.0,94589.0,0.08462877]
[1739367544172,0.00022428,94610.0,94591.0,0.001]
[1739367544373,0.00022428,94610.0,94592.0,0.10250365]
[1739367544823,0.07982428,94610.0,94536.0,0.08462877]
[1739367545029,0.07982428,94610.0,94488.0,0.0143701]
[1739367545030,0.158718,94507.0,94500.0,1.45719561]
[1739367545200,0.22364667,94517.0,94500.0,1.45719561]
[1739367545418,0.00132278,94528.0,94500.0,1.45719561]
[1739367545419,0.00132265,94516.0,94505.0,2.86383031]
[1739367545617,0.001323,94557.0,94505.0,2.86383031]
[1739367545816,0.22496967,94557.0,94505.0,2.86383031]
[1739367546001,0.10250365,94512.0,94511.0,0.33827354]
[1739367546464,0.158575,94592.0,94591.0,0.001]
[1739367546596,0.4769477,94592.0,94545.0,0.15856]
[1739367546797,0.158567,94597.0,94560.0,0.32222715]
[1739367547001,0.01322428,94604.0,94556.0,0.33827354]
[1739367547262,0.00022428,94604.0,94556.0,0.33827354]
[1739367547435,0.31392865,94596.0,94566.0,0.33827354]
[1739367547660,0.10250365,94580.0,94566.0,0.33827354]
[1739367547987,0.158617,94567.0,94566.0,0.00012604]
[1739367548324,0.457277,94567.0,94566.0,0.00012604]
[1739367548528,0.55781,94567.0,94566.0,0.00012604]
[1739367548988,1.0348664,94567.0,94566.0,0.00012604]
[1739367549523,1.05435744,94567.0,94566.0,0.00012604]
[1739367549667,1.15686109,94567.0,94566.0,0.00012604]
[1739367549876,1.82186709,94567.0,94566.0,4e-08]
[1739367550077,1.61937409,94567.0,94566.0,4e-08]
[1739367550286,1.61937409,94567.0,94514.0,0.33827354]
[1739367550287,0.308704,94515.0,94514.0,0.33827354]
[1739367550467,0.41120765,94515.0,94514.0,0.33870361]
[1739367550667,0.41120765,94515.0,94514.0,0.00043007]
[1739367551643,0.68629265,94515.0,94514.0,0.00043007]
[1739367552239,0.70578369,94515.0,94514.0,0.00043007]
[1739367552858,1.19010089,94515.0,94514.0,0.00043007]
[1739367553059,1.19010089,94515.0,94505.0,2.73583031]
[1739367553060,0.30872,94506.0,94505.0,2.73583031]
[1739367553237,0.62289665,94506.0,94505.0,2.73583031]
[1739367553438,0.41122365,94506.0,94505.0,2.73583031]
[1739367553789,0.26122365,94506.0,94505.0,2.73583031]
[1739367553924,0.04092133,94515.0,94505.0,2.73583031]
[1739367554126,0.01992133,94515.0,94506.0,0.10250365]
[1739367554425,0.211469,94577.0,94507.0,0.08850365]
[1739367554672,0.10250365,94555.0,94507.0,0.08256144]
[1739367555005,0.00132223,94554.0,94520.0,0.32222715]
[1739367555274,0.10250365,94553.0,94507.0,0.08256144]
[1739367555477,0.00132225,94552.0,94516.0,0.0846431]
[1739367555629,0.10250365,94551.0,94520.0,0.32222715]
[1739367555832,0.15863,94560.0,94521.0,0.1032983]
[1739367556044,0.158635,94557.0,94508.0,0.10250365]
[1739367556242,0.10382582,94556.0,94515.0,0.0776431]
[1739367556419,0.10250365,94556.0,94516.0,0.12139237]
[1739367556622,0.10250365,94556.0,94525.0,0.0846431]
[1739367556845,0.211397,94609.0,94526.0,0.10329803]
[1739367556846,0.015,94554.0,94526.0,0.10329803]
[1739367557372,0.2699,94700.0,94540.0,0.32222715]
[1739367557373,0.0013219,94583.0,94540.0,0.32222715]
[1739367557510,0.007,94556.0,94541.0,0.26189757]
[1739367557731,0.015,94556.0,94542.0,0.05841247]
[1739367557932,0.00132169,94581.0,94542.0,0.10250365]
[1739367558142,0.00132169,94581.0,94514.0,0.0208579]
[1739367558143,0.10250365,94576.0,94514.0,0.0208579]
[1739367558344,0.00132204,94575.0,94514.0,0.0208579]
[1739367558543,0.15132204,94575.0,94516.0,0.00079482]
[1739367558836,0.158605,94574.0,94520.0,0.32222715]
[1739367559036,0.10250365,94574.0,94540.0,0.32222715]
[1739367559162,0.015,94583.0,94541.0,0.10329757]
[1739367559371,0.10250365,94582.0,94541.0,0.00079392]
[1739367559742,0.015,94583.0,94560.0,0.32222715]
[1739367559944,0.158557,94603.0,94561.0,0.00079344]
[1739367560125,0.00132158,94602.0,94562.0,0.00079359]
[1739367560429,0.158599,94578.0,94545.0,0.0846431]
[1739367560664,0.21147,94576.0,94545.0,0.0846431]
[1739367560869,0.158619,94566.0,94560.0,0.001]
[1739367561083,0.158627,94561.0,94560.0,0.002]
[1739367561294,0.10250365,94561.0,94560.0,0.002]
[1739367561530,0.158593,94582.0,94560.0,0.001]
[1739367561736,0.158627,94561.0,94560.0,0.001]
[1739367561946,0.26113065,94561.0,94560.0,0.001]
[1739367562147,0.158636,94556.0,94545.0,0.00113343]
[1739367562350,0.10382579,94555.0,94545.0,0.00113343]
[1739367562501,0.158652,94546.0,94545.0,0.00113343]
[1739367562702,0.26247789,94546.0,94545.0,0.00113343]
[1739367562943,0.15,94545.0,94515.0,0.03552613]
[1739367563155,0.158703,94516.0,94515.0,0.03561939]
[1739367563313,0.10250365,94516.0,94515.0,0.03561939]
[1739367563519,0.15,94545.0,94515.0,0.03561939]
[1739367563740,0.10250365,94537.0,94515.0,9.326e-05]
[1739367563941,0.00132238,94536.0,94520.0,0.0846431]
[1739367564142,0.10250365,94537.0,94520.0,0.0846431]
[1739367564384,0.10250365,94531.0,94515.0,9.326e-05]
[1739367564557,0.014,94516.0,94515.0,9.326e-05]
[1739367564752,0.01208328,94516.0,94515.0,9.326e-05]
[1739367565079,0.211502,94562.0,94515.0,9.326e-05]
[1739367565242,0.015,94537.0,94515.0,9.326e-05]
[1739367565442,0.007,94516.0,94515.0,9.326e-05]
[1739367565642,0.015,94537.0,94515.0,9.326e-05]
[1739367565866,0.007,94516.0,94515.0,9.326e-05]
[1739367566433,0.00132246,94533.0,94515.0,9.326e-05]
[1739367566654,0.211499,94563.0,94515.0,9.326e-05]
[1739367566655,0.10250365,94532.0,94515.0,9.326e-05]
[1739367567069,0.211581,94527.0,94515.0,9.326e-05]
[1739367567289,0.007,94516.0,94515.0,9.326e-05]
[1739367567496,0.12350365,94516.0,94515.0,9.326e-05]
[1739367567705,0.28220665,94516.0,94515.0,9.326e-05]
[1739367567906,0.158707,94514.0,94505.0,2.60792357]
[1739367568115,0.10250365,94513.0,94505.0,2.60835386]
[1739367568729,0.26121365,94512.0,94505.0,2.60835386]
[1739367568938,0.10250365,94512.0,94505.0,2.60835386]
[1739367569141,0.158719,94507.0,94505.0,2.60835386]
[1739367569375,0.10250365,94506.0,94505.0,2.60835386]
[1739367570812,0.25250365,94506.0,94505.0,2.60835386]
[1739367571250,0.11750365,94506.0,94505.0,2.60835386]
[1739367571658,0.01206775,94508.0,94505.0,2.60835386]
[1739367571863,0.007,94506.0,94505.0,2.60835386]
[1739367572062,0.10950365,94506.0,94505.0,2.60835386]
[1739367572275,0.27338079,94506.0,94505.0,2.60835386]
[1739367572475,0.28038079,94506.0,94505.0,2.60835386]
[1739367572881,0.27338079,94506.0,94505.0,2.60835386]
[1739367573087,0.29538079,94506.0,94505.0,2.48035386]
[1739367573293,0.31135052,94506.0,94505.0,2.48035386]
[1739367573499,0.28935052,94506.0,94505.0,2.48035386]
[1739367573708,0.29635052,94506.0,94505.0,2.48035386]
[1739367573914,0.29919338,94506.0,94505.0,2.48035386]
[1739367574121,0.14047338,94506.0,94505.0,2.48035386]
[1739367574322,0.02585558,94506.0,94505.0,2.48035386]
[1739367574747,0.04085558,94506.0,94505.0,2.48035386]
[1739367575154,0.03385558,94506.0,94505.0,2.48035386]
[1739367575367,0.022,94506.0,94505.0,2.48035386]
[1739367575489,0.12450365,94506.0,94505.0,2.48035386]
[1739367575701,0.13640622,94506.0,94505.0,2.48035386]
[1739367576101,0.02590257,94506.0,94505.0,2.48035386]
[1739367576422,0.03390257,94506.0,94505.0,2.48035386]
[1739367576623,0.04090257,94506.0,94505.0,2.48035386]
[1739367576825,0.14340622,94506.0,94505.0,2.48035386]
[1739367576988,0.11684427,94506.0,94505.0,2.48035386]
[1739367577192,0.01206775,94521.0,94505.0,2.48035386]
[1739367577393,0.10250365,94520.0,94505.0,2.48035386]
[1739367577841,0.015,94506.0,94505.0,2.48035386]
[1739367578049,0.015,94506.0,94505.0,2.35235386]
[1739367578460,0.022,94506.0,94505.0,2.35235386]
[1739367578872,0.015,94506.0,94505.0,2.35235386]
[1739367579067,0.022,94506.0,94505.0,2.35235386]
[1739367579314,0.007,94506.0,94505.0,2.35235386]
[1739367579493,0.22363575,94533.0,94505.0,2.35235386]
[1739367579494,0.211568,94532.0,94505.0,2.35235386]
[1739367579790,0.00620472,94506.0,94505.0,2.35235386]
[1739367580015,0.015,94520.0,94505.0,2.35235386]
[1739367580211,0.01206775,94528.0,94505.0,2.35235386]
[1739367580413,0.021,94506.0,94505.0,2.35235386]
[1739367580818,0.00973314,94506.0,94505.0,2.45485751]
[1739367581073,0.01206775,94549.0,94506.0,0.0974]
[1739367581280,0.015,94520.0,94507.0,0.10250365]
[1739367581500,0.10250365,94548.0,94507.0,0.10250365]
[1739367581709,0.211552,94539.0,94505.0,2.35235386]
[1739367581938,0.10250365,94529.0,94505.0,2.35235386]
[1739367582132,0.007,94528.0,94522.0,0.0846431]
[1739367582332,0.158686,94526.0,94505.0,2.36035386]
[1739367582534,0.00132234,94525.0,94505.0,2.36035386]
[1739367582688,0.0013225,94538.0,94505.0,2.36035386]
[1739367582882,0.211566,94533.0,94505.0,2.36035386]
[1739367583109,0.158703,94516.0,94505.0,2.36035386]
[1739367583311,0.10250365,94515.0,94505.0,2.36035386]
[1739367583523,0.15872,94506.0,94505.0,2.36135386]
[1739367583911,0.26122365,94506.0,94505.0,2.36135386]
[1739367584085,0.26122365,94506.0,94505.0,2.23235386]
[1739367584318,0.27158775,94506.0,94505.0,2.23235386]
[1739367584500,0.27158775,94506.0,94505.0,2.23335386]
[1739367584728,0.26122365,94506.0,94505.0,2.23335386]
[1739367585153,0.10250365,94506.0,94505.0,2.23335386]
[1739367585534,0.10950365,94506.0,94505.0,2.23335386]
[1739367585738,0.01206775,94507.0,94505.0,2.23335386]
[1739367585938,0.01206775,94507.0,94505.0,2.23235386]
[1739367586072,0.12350365,94506.0,94505.0,2.23235386]
[1739367586274,0.021,94506.0,94505.0,2.23235386]
[1739367586485,0.11650365,94506.0,94505.0,2.23235386]
[1739367586709,0.10950365,94506.0,94505.0,2.23235386]
[1739367586907,0.10972752,94506.0,94505.0,2.23235386]
[1739367587636,0.12372752,94506.0,94505.0,2.23235386]
[1739367587839,0.02122387,94506.0,94505.0,2.10435386]
[1739367588047,0.01422387,94506.0,94505.0,2.10435386]
[1739367588428,0.02122387,94506.0,94505.0,2.10535386]
[1739367588817,0.01422387,94506.0,94505.0,2.10435386]
[1739367588986,0.00722387,94506.0,94505.0,2.10535386]
[1739367589387,0.01422387,94506.0,94505.0,2.10435386]
[1739367589611,0.02122387,94506.0,94505.0,2.10535386]
[1739367589821,0.00722387,94506.0,94505.0,2.10535386]
[1739367589956,0.00022387,94506.0,94505.0,2.10435386]
[1739367590156,0.00022387,94506.0,94505.0,2.30435386]
[1739367590602,0.10272752,94506.0,94505.0,2.30435386]
[1739367591192,0.11672752,94506.0,94505.0,2.30435386]
[1739367591525,0.01822387,94506.0,94505.0,2.30535386]
[1739367591671,0.01822387,94506.0,94505.0,2.30435386]
[1739367591879,0.13279527,94506.0,94505.0,2.30435386]
[1739367592080,0.13679527,94506.0,94505.0,2.30535386]
[1739367592289,0.12879527,94506.0,94505.0,2.30435386]
[1739367592469,0.11479527,94506.0,94505.0,2.30435386]
[1739367592669,0.11479527,94506.0,94505.0,2.30535386]
[1739367592670,0.11879527,94506.0,94505.0,2.30535386]
[1739367592869,0.13279527,94506.0,94505.0,2.17735386]
[1739367593120,0.12879527,94506.0,94505.0,2.17635386]
[1739367593323,0.11879527,94506.0,94505.0,2.17735386]
[1739367593778,0.13279527,94506.0,94505.0,2.17735386]
[1739367594182,0.01629162,94506.0,94505.0,2.17735386]
[1739367594541,0.13279527,94506.0,94505.0,2.17735386]
[1739367594744,0.26751162,94506.0,94505.0,2.17735386]
[1739367595188,0.26351162,94506.0,94505.0,2.17635386]
[1739367595598,0.31941162,94506.0,94505.0,2.17635386]
[1739367595793,0.55091527,94506.0,94505.0,2.17635386]
[1739367595996,0.80154227,94506.0,94505.0,2.04825386]
[1739367596234,0.703048,94506.0,94505.0,2.04825386]
[1739367596435,0.595824,94506.0,94505.0,2.04825386]
[1739367596637,0.581824,94506.0,94505.0,2.04825386]
[1739367596816,0.603824,94506.0,94505.0,2.04825386]
[1739367597025,0.996289,94506.0,94505.0,2.04825386]
[1739367597394,0.981289,94506.0,94505.0,2.04825386]
[1739367597597,0.996289,94506.0,94505.0,2.04825386]
[1739367597803,1.4736463,94506.0,94505.0,1.92015386]
[1739367598021,1.4736463,94506.0,94505.0,1.40464251]
[1739367598428,1.4736463,94506.0,94505.0,1.19369824]
[1739367598429,1.4317463,94506.0,94505.0,1.19369824]
[1739367598592,1.922812,94506.0,94505.0,0.5031869]
[1739367598787,1.922812,94506.0,94505.0,0.41642828]
[1739367598991,1.48629341,94506.0,94505.0,0.17595352]
[1739367599207,1.41984335,94506.0,94505.0,0.11661159]
[1739367599428,1.41284335,94506.0,94505.0,0.09644759]
[1739367599630,0.15,94505.0,94500.0,0.75496868]
[1739367599828,0.3384,94501.0,94500.0,0.08023934]
[1739367600028,0.420035,94497.0,94496.0,5.20809654]
[1739367600271,0.33964373,94497.0,94496.0,3.4555502]
[1739367600480,0.33964373,94497.0,94496.0,1.50717645]
[1739367600675,0.39247439,94497.0,94496.0,1.46484645]
[1739367601058,0.39247439,94497.0,94496.0,1.34970626]
[1739367601257,0.41593963,94497.0,94496.0,1.34970626]
[1739367601458,0.39247439,94497.0,94496.0,1.29118726]
[1739367601661,0.39191352,94497.0,94496.0,1.22769226]
[1739367602010,0.39191352,94497.0,94496.0,0.72717204]
[1739367602221,0.211662,94491.0,94487.0,6.04007201]
[1739367602417,0.15875,94488.0,94487.0,5.00516951]
[1739367602621,3.529222,94488.0,94487.0,4.47495137]
[1739367602813,4.23514873,94488.0,94487.0,3.10179028]
[1739367602952,4.00128673,94488.0,94487.0,2.54942713]
[1739367603165,4.00128673,94488.0,94487.0,2.12504399]
[1739367603166,1.51462528,94488.0,94487.0,2.12504399]
[1739367603369,2.06737915,94488.0,94487.0,2.12504399]
[1739367603808,2.06737915,94488.0,94487.0,2.01920899]
[1739367603994,2.06737915,94488.0,94487.0,0.74603858]
[1739367603995,0.77949899,94488.0,94487.0,0.74603858]
[1739367604116,0.79156674,94488.0,94487.0,0.74603858]
[1739367604312,0.79156674,94488.0,94454.0,0.0846431]
[1739367604313,0.15,94479.0,94478.0,6.45908245]
[1739367604514,4.95058227,94479.0,94478.0,6.35323745]
[1739367604719,4.07286927,94479.0,94478.0,6.35323745]
[1739367604976,4.04250643,94479.0,94478.0,6.35323745]
[1739367605167,3.4317983,94479.0,94478.0,6.35323745]
[1739367605367,1.2056103,94479.0,94478.0,6.35323745]
[1739367605618,1.21767805,94479.0,94478.0,6.35323745]
[1739367605782,1.80140585,94479.0,94478.0,6.26856145]
[1739367606014,1.21767805,94479.0,94478.0,6.24739245]
[1739367606446,1.17445805,94479.0,94478.0,6.24739245]
[1739367606645,1.08797305,94479.0,94478.0,6.24739245]
[1739367606857,0.83974605,94479.0,94478.0,6.24739245]
[1739367607004,0.84674605,94479.0,94478.0,6.24739245]
[1739367607215,0.83974605,94479.0,94478.0,6.24739245]
[1739367607532,1.58048805,94479.0,94478.0,6.24739245]
[1739367607835,0.98974605,94479.0,94478.0,6.24739245]
[1739367608038,0.98688105,94479.0,94478.0,6.11939245]
[1739367608334,0.9818133,94479.0,94478.0,6.11939245]
[1739367608670,1.5655353,94479.0,94478.0,6.11939245]
[1739367609079,1.5655353,94479.0,94478.0,5.58915431]
[1739367609288,1.5585353,94479.0,94478.0,5.16474618]
[1739367609491,1.5585353,94479.0,94478.0,5.05890118]
[1739367609756,1.5655353,94479.0,94478.0,5.05890118]
[1739367609940,1.5585353,94479.0,94478.0,4.63450205]
[1739367610345,0.9818133,94479.0,94478.0,4.63450205]
[1739367610499,0.9748133,94479.0,94478.0,4.63450205]
[1739367610705,1.5585335,94479.0,94478.0,4.52865705]
[1739367610905,1.57756695,94479.0,94478.0,4.52865705]
[1739367611108,1.57056695,94479.0,94478.0,4.20426391]
[1739367611339,0.98684675,94479.0,94478.0,4.20426391]
[1739367611743,1.57056725,94479.0,94478.0,4.20426391]
[1739367612245,1.57056725,94479.0,94478.0,4.20437051]
[1739367612246,0.98684675,94479.0,94478.0,4.20437051]
[1739367612570,0.99384675,94479.0,94478.0,4.20437051]
[1739367612783,0.98684675,94479.0,94478.0,4.20437051]
[1739367612984,0.83684675,94479.0,94478.0,4.07637051]
[1739367613171,0.36902145,94479.0,94478.0,4.07637051]
[1739367613372,0.01903345,94479.0,94478.0,4.15427051]
[1739367613592,0.14535468,94479.0,94478.0,4.15427051]
[1739367613950,0.62985088,94479.0,94478.0,4.07637051]
[1739367614108,0.77152735,94479.0,94478.0,4.07637051]
[1739367614505,0.77852735,94479.0,94478.0,4.07637051]
[1739367614707,0.30103145,94479.0,94478.0,4.07637051]
[1739367615720,0.27550145,94479.0,94478.0,4.07637051]
[1739367615929,0.75300035,94479.0,94478.0,4.07637051]
[1739367616132,0.28250145,94479.0,94478.0,4.07637051]
[1739367616472,0.28250145,94479.0,94478.0,4.12587051]
[1739367616473,0.01203345,94479.0,94478.0,4.12587051]
[1739367616610,0.01203345,94479.0,94478.0,4.22587051]
[1739367616812,0.47087045,94479.0,94478.0,4.22587051]
[1739367617068,0.62087045,94479.0,94478.0,4.22587051]
[1739367617207,0.43371445,94479.0,94478.0,4.22587051]
[1739367617416,0.16193345,94479.0,94478.0,4.22587051]
[1739367617615,0.16893345,94479.0,94478.0,4.22587051]
[1739367617826,0.01893345,94479.0,94478.0,4.22587051]
[1739367618074,0.01893345,94479.0,94478.0,4.17807051]
[1739367618480,0.17769845,94479.0,94478.0,4.17807051]
[1739367619288,0.369369,94479.0,94478.0,4.17807051]
[1739367619460,0.165765,94479.0,94478.0,4.17807051]
[1739367619665,0.158765,94479.0,94478.0,4.17807051]
[1739367620095,0.272582,94479.0,94478.0,4.17807051]
[1739367620298,0.007,94479.0,94478.0,4.17807051]
[1739367620566,0.00021154,94541.0,94479.0,0.0816]
[1739367620755,0.00132288,94515.0,94481.0,0.0721]
[1739367620959,0.158682,94529.0,94482.0,0.0485]
[1739367621182,0.09049584,94516.0,94483.0,0.10250365]
[1739367621441,0.09049584,94516.0,94492.0,0.0846431]
[1739367621696,0.09049584,94516.0,94494.0,0.0462]
[1739367621697,0.01239584,94516.0,94494.0,0.0462]
[1739367621843,0.00021154,94541.0,94501.0,0.0462]
[1739367622025,8.492e-05,94541.0,94503.0,0.0462]
[1739367622224,8.492e-05,94541.0,94505.0,0.0462]
[1739367622448,8.492e-05,94541.0,94506.0,0.0392]
[1739367622449,0.0903752,94532.0,94506.0,0.0392]
[1739367622828,0.00132237,94531.0,94506.0,0.0392]
[1739367623030,0.0903752,94532.0,94504.0,0.0846431]
[1739367623241,0.158685,94527.0,94504.0,0.0846431]
[1739367623463,0.00132243,94531.0,94504.0,0.0846431]
[1739367623711,0.00132243,94531.0,94494.0,0.0846431]
[1739367623712,0.324601,94530.0,94494.0,0.0846431]
[1739367623909,0.907999,94531.0,94495.0,0.0826]
[1739367624138,0.158712,94511.0,94495.0,0.0826]
[1739367624348,0.0903752,94532.0,94495.0,0.0826]
[1739367624528,0.15,94530.0,94495.0,0.0826]
[1739367624783,0.158736,94497.0,94495.0,0.0826]
[1739367625406,0.158763,94480.0,94478.0,4.13097051]
[1739367625607,0.654227,94480.0,94478.0,4.13097051]
[1739367625806,1.434388,94480.0,94479.0,0.00043043]
[1739367625961,3.0501834,94480.0,94479.0,0.00043043]
[1739367626161,2.8870864,94480.0,94479.0,0.00043043]
[1739367626336,2.293148,94480.0,94479.0,0.00043043]
[1739367626538,1.921901,94480.0,94479.0,0.00043043]
[1739367626742,1.446642,94480.0,94479.0,0.00143043]
[1739367626957,1.345579,94480.0,94479.0,0.00043043]
[1739367627174,0.504054,94480.0,94479.0,0.00043043]
[1739367627472,0.158763,94480.0,94479.0,0.00043043]
[1739367627676,0.211605,94516.0,94479.0,0.00043043]
[1739367627851,0.10235399,94515.0,94481.0,0.0828]
[1739367628053,0.15869,94524.0,94490.0,0.0846431]
[1739367628308,0.12479656,94523.0,94479.0,0.001]
[1739367628451,0.12479656,94523.0,94485.0,0.0846431]
[1739367628452,0.211593,94521.0,94485.0,0.0846431]
[1739367628797,0.158698,94519.0,94485.0,0.0846431]
[1739367629040,0.21180387,94527.0,94486.0,0.00856431]
[1739367629189,0.15869,94524.0,94485.0,0.0846431]
[1739367629393,0.00022387,94527.0,94485.0,0.0846431]
[1739367629602,0.00022387,94527.0,94486.0,0.10250365]
[1739367629808,0.00022387,94527.0,94495.0,0.0846431]
[1739367630012,0.00022387,94527.0,94496.0,0.11096796]
[1739367630218,0.00022387,94527.0,94500.0,0.34649847]
[1739367630542,0.00022387,94527.0,94501.0,0.10250365]
[1739367631024,0.00022387,94527.0,94502.0,0.1256]
[1739367631238,0.00722387,94527.0,94502.0,0.1256]
[1739367631475,0.00722387,94527.0,94506.0,0.0846431]
[1739367632024,0.00722387,94527.0,94507.0,0.00698892]
[1739367632462,0.00022387,94527.0,94507.0,0.00698892]
[1739367632621,0.00722387,94527.0,94507.0,0.00698892]
[1739367633033,0.00722387,94527.0,94495.0,0.0822431]
[1739367633338,0.01422387,94527.0,94507.0,0.001]
[1739367633503,0.00022387,94527.0,94496.0,0.10250365]
[1739367633709,0.211542,94544.0,94495.0,0.0822431]
[1739367633710,0.211505,94561.0,94495.0,0.0822431]
[1739367634043,0.006,94527.0,94507.0,0.001]
[1739367634253,0.211569,94532.0,94497.0,0.00791782]
[1739367634455,0.158681,94530.0,94497.0,0.00105784]
[1739367634661,0.158685,94527.0,94497.0,0.00105784]
[1739367634881,0.00132241,94526.0,94498.0,0.00685763]
[1739367635085,0.158705,94515.0,94495.0,0.0822431]
[1739367635292,0.00132255,94548.0,94499.0,0.00685529]
[1739367635469,0.158733,94498.0,94485.0,0.0776431]
[1739367635786,0.16005755,94497.0,94496.0,0.0846431]
[1739367635995,0.158731,94500.0,94485.0,0.0776431]
[1739367636233,0.007,94515.0,94485.0,0.0776431]
[1739367636430,0.007,94515.0,94486.0,0.00105821]
[1739367636617,0.00132255,94520.0,94486.0,0.00105821]
[1739367636840,0.15,94517.0,94479.0,0.0846431]
[1739367637031,0.158753,94487.0,94479.0,0.0846431]
[1739367637253,0.158762,94481.0,94480.0,0.00919977]
[1739367637658,0.399714,94481.0,94480.0,0.00919977]
[1739367637963,0.399714,94481.0,94452.0,0.0001065]
[1739367637964,0.15,94480.0,94478.0,3.92957028]
[1739367638170,2.768405,94479.0,94478.0,3.92957028]
[1739367638480,3.2459205,94479.0,94478.0,3.92957028]
[1739367638912,2.3100455,94479.0,94478.0,3.92957028]
[1739367639116,2.1326485,94479.0,94478.0,3.92957028]
[1739367639323,0.158765,94479.0,94478.0,3.93177695]
[1739367639722,0.00044553,94481.0,94478.0,3.93177695]
[1739367639947,0.007,94479.0,94478.0,3.93177695]
[1739367640166,0.00044553,94481.0,94478.0,3.93177695]
[1739367640362,0.007,94479.0,94478.0,3.93177695]
[1739367640861,0.00044553,94481.0,94478.0,3.93177695]
[1739367640862,0.00044553,94481.0,94478.0,3.93724301]
[1739367641058,0.211618,94510.0,94479.0,0.00105818]
[1739367641284,0.01207803,94512.0,94479.0,0.00105818]
[1739367641418,0.00132255,94511.0,94478.0,3.93736227]
[1739367641630,0.158722,94505.0,94479.0,0.08570136]
[1739367641832,0.158723,94504.0,94479.0,0.08570136]
[1739367642017,0.007,94481.0,94479.0,0.08570136]
[1739367642587,0.0041249,94481.0,94479.0,0.08570136]
[1739367642721,0.01207803,94522.0,94479.0,0.08570136]
[1739367642932,0.01207803,94522.0,94480.0,0.44900212]
[1739367643151,0.007,94511.0,94493.0,0.1289]
[1739367643409,0.01207803,94526.0,94494.0,0.10356147]
[1739367643595,0.01207803,94526.0,94500.0,0.34649847]
[1739367643816,0.01207803,94526.0,94501.0,0.10250365]
[1739367644026,0.01207803,94526.0,94510.0,0.34649847]
[1739367644226,0.01207803,94526.0,94511.0,0.10250365]
[1739367644431,0.01207803,94526.0,94511.0,0.13869407]
[1739367644639,0.00021153,94547.0,94512.0,0.03079828]
[1739367644857,0.00021153,94547.0,94513.0,0.10250365]
[1739367645078,0.00021153,94547.0,94513.0,0.10789132]
[1739367645293,0.00021153,94547.0,94513.0,0.00550693]
[1739367645718,0.29098765,94526.0,94513.0,0.00550693]
[1739367645956,0.211544,94543.0,94513.0,0.00011926]
[1739367645957,0.158706,94515.0,94513.0,0.00011926]
[1739367646167,0.211588,94524.0,94514.0,0.0846431]
[1739367646380,0.00022387,94527.0,94514.0,0.08550404]
[1739367646381,0.10250365,94523.0,94514.0,0.08550404]
[1739367646588,0.10250365,94523.0,94514.0,0.00086094]
[1739367646793,0.158706,94514.0,94513.0,0.00011926]
[1739367647001,1.46865965,94514.0,94513.0,0.00011926]
[1739367647203,1.15990065,94514.0,94513.0,0.00011926]
[1739367647410,0.59150165,94514.0,94513.0,0.00011926]
[1739367647617,0.42921965,94514.0,94513.0,0.00011926]
[1739367648034,0.158743,94492.0,94491.0,0.0846431]
[1739367648254,0.158743,94492.0,94479.0,0.04148739]
[1739367648255,0.158763,94480.0,94479.0,0.04148739]
[1739367648519,0.26126665,94480.0,94479.0,0.04148739]
[1739367648732,0.88206365,94480.0,94479.0,0.00647077]
[1739367648935,2.12696065,94480.0,94479.0,0.00647077]